Workbook

Sheet Vorrunde
A4: Steirische Einzel Classic 2017-2018
A5: Vorrunde
A6: Herren Ü 60
A7: 28.Jan.- 11.Feb.2018 Finale 11.März 2018 VIVAX Mürzzuschlag
A8: Herren Ü 60
A9: Platz | B9: PassNr | C9: Name | D9: GebDatum | E9: Verein | F9: Volle | G9: Abr. | H9: Fw. | I9: Gesamt
A10: 1 | B10: 161067 | C10: Pappitsch Erich | E10: ESV Leoben | F10: 380 | G10: 200 | H10: 2 | I10: =SUM(F10:G10) -> 580
A11: 2 | B11: 161026 | C11: Klupatschek Manfred | E11: SKV Raiffeisen Mürzzuschlag | F11: 374 | G11: 183 | H11: 5 | I11: =SUM(F11:G11) -> 557
A12: 3 | B12: 161504 | C12: Kuhnke Ernst | E12: SV Mayr Melnhof Novopan | F12: 381 | G12: 174 | H12: 7 | I12: =SUM(F12:G12) -> 555
A13: 4 | B13: 161134 | C13: Lechner Manfred | E13: SV Mayr Melnhof Novopan | F13: 369 | G13: 183 | H13: 4 | I13: =SUM(F13:G13) -> 552
A14: 5 | B14: 161105 | C14: Klammer Johann | E14: SV Mayr Melnhof Novopan | F14: 339 | G14: 210 | H14: 4 | I14: =SUM(F14:G14) -> 549
A15: 6 | B15: 161122 | C15: Menzl Johann | E15: KSC Holding Graz | F15: 360 | G15: 183 | H15: 9 | I15: =SUM(F15:G15) -> 543
A16: 7 | B16: 161193 | C16: Ochenbauer Franz | D16: 1936-03-23 | E16: SKV Raiffeisen Mürzzuschlag | F16: 358 | G16: 182 | H16: 4 | I16: =SUM(F16:G16) -> 540
A17: 8 | B17: 161376 | C17: Krammer Michael | E17: ESV Bruck/Mur | F17: 362 | G17: 176 | H17: 2 | I17: =SUM(F17:G17) -> 538
A18: 9 | B18: 161178 | C18: Tichi Max | E18: SKV Raiffeisen Mürzzuschlag | F18: 352 | G18: 183 | H18: 9 | I18: =SUM(F18:G18) -> 535
A19: 10 | B19: 161120 | C19: Steiner Ferdinand | E19: SV Mayr Melnhof Novopan | F19: 330 | G19: 197 | H19: 4 | I19: =SUM(F19:G19) -> 527
A20: 11 | B20: 161396 | C20: Mugrauer Franz | D20: 1942-03-30 | E20: SKC Montanuni Leoben | F20: 352 | G20: 174 | H20: 4 | I20: =SUM(F20:G20) -> 526
A21: 12 | B21: 161000 | C21: Herold Gerald | E21: SV Mayr Melnhof Novopan | F21: 343 | G21: 182 | H21: 5 | I21: =SUM(F21:G21) -> 525
A22: 13 | B22: 161354 | C22: Schröck Othmar | D22: 1948-09-01 | E22: KSV Gratkorn | F22: 356 | G22: 168 | H22: 15 | I22: =SUM(F22:G22) -> 524
A23: 14 | B23: 161226 | C23: Pekar Arnold | D23: 1948-09-18 | E23: KSC Holding Graz | F23: 339 | G23: 183 | H23: 5 | I23: =SUM(F23:G23) -> 522
A24: 15 | B24: 161429 | C24: Vorraber Erwin | D24: 1951-10-25 | E24: SV Polizei Leoben | F24: 341 | G24: 179 | H24: 2 | I24: =SUM(F24:G24) -> 520
A25: 16 | B25: 161016 | C25: Toppler Leopold | E25: SKV Raiffeisen Mürzzuschlag | F25: 341 | G25: 176 | H25: 7 | I25: =SUM(F25:G25) -> 517
A26: 17 | B26: 161443 | C26: Weilguni Johann | D26: 1950-05-09 | E26: KSC Holding Graz | F26: 360 | G26: 156 | H26: 3 | I26: =SUM(F26:G26) -> 516
A27: 18 | B27: 161042 | C27: Stanzl Walter | E27: ESV Bruck/Mur | F27: 362 | G27: 154 | H27: 5 | I27: =SUM(F27:G27) -> 516
A28: 19 | B28: 161116 | C28: Hölbling Konrad | D28: 1950-11-08 | E28: SKV Raiffeisen Mürzzuschlag | F28: 349 | G28: 166 | H28: 3 | I28: =SUM(F28:G28) -> 515
A29: 20 | B29: 161001 | C29: Griesser Amandus | D29: 1944-05-31 | E29: WSV Liezen Admiral | F29: 347 | G29: 167 | H29: 3 | I29: =SUM(F29:G29) -> 514
A30: 21 | B30: 161069 | C30: Plank Alfred | D30: 1943-08-12 | E30: ESV Leoben | F30: 357 | G30: 155 | H30: 6 | I30: =SUM(F30:G30) -> 512
A31: 22 | B31: 161033 | C31: Edlinger Ernst | E31: ESV Bruck/Mur | F31: 356 | G31: 154 | H31: 11 | I31: =SUM(F31:G31) -> 510
A32: 23 | B32: 161219 | C32: Leitner Bernhard | E32: ESV Bruck/Mur | F32: 338 | G32: 169 | H32: 5 | I32: =SUM(F32:G32) -> 507
A33: 24 | B33: 161059 | C33: Pfennich Alfred | D33: 1955-10-03 | E33: SV Polizei Leoben | F33: 369 | G33: 135 | H33: 14 | I33: =SUM(F33:G33) -> 504
A34: 25 | B34: 161276 | C34: Schwaiger Rudolf | E34: SKV Raiffeisen Mürzzuschlag | F34: 369 | G34: 134 | H34: 9 | I34: =SUM(F34:G34) -> 503
A35: 26 | B35: 161034 | C35: Müller Heinz | D35: 1948-07-30 | E35: SKC Landhaus Wilhelmer | F35: 357 | G35: 142 | H35: 12 | I35: =SUM(F35:G35) -> 499
A36: 27 | B36: 161077 | C36: Tychi Peter | D36: 1951-06-23 | E36: ESV Leoben | F36: 365 | G36: 133 | H36: 12 | I36: =SUM(F36:G36) -> 498
A37: 28 | B37: 161175 | C37: Rampre-Fink Franz | D37: 1955-03-08 | E37: Gehörlosen KC Graz | F37: 341 | G37: 156 | H37: 13 | I37: =SUM(F37:G37) -> 497
A38: 29 | B38: 161231 | C38: Rust Horst | D38: 1956-07-03 | E38: ESV Leoben | F38: 361 | G38: 132 | H38: 11 | I38: =SUM(F38:G38) -> 493
A39: 30 | B39: 161182 | C39: Latner Wolfgang | E39: SKV Raiffeisen Mürzzuschlag | F39: 330 | G39: 152 | H39: 15 | I39: =SUM(F39:G39) -> 482
A40: 31 | B40: 161315 | C40: Ambros Walter | E40: KSC Holding Graz | F40: 334 | G40: 146 | H40: 17 | I40: =SUM(F40:G40) -> 480
A41: 32 | B41: 161172 | C41: Doblreiter Norbert | D41: 1944-04-12 | E41: KSC Holding Graz | F41: 323 | G41: 154 | H41: 11 | I41: =SUM(F41:G41) -> 477
A42: 33 | B42: 161104 | C42: Haubmann Rudolf | E42: SV Mayr Melnhof Novopan | F42: 348 | G42: 128 | H42: 19 | I42: =SUM(F42:G42) -> 476
A43: 34 | B43: 161038 | C43: Müller Werner | E43: ESV Leoben | F43: 324 | G43: 146 | H43: 7 | I43: =SUM(F43:G43) -> 470
A44: 35 | B44: 161312 | C44: Ogris Alfred | D44: 1951-05-03 | E44: KSC Holding Graz | F44: 329 | G44: 141 | H44: 15 | I44: =SUM(F44:G44) -> 470
A45: 36 | B45: 161196 | C45: Sawadjan Erich | E45: SKV Raiffeisen Mürzzuschlag | F45: 324 | G45: 141 | H45: 11 | I45: =SUM(F45:G45) -> 465
A46: 37 | B46: 161108 | C46: Scherzer Diethmar | D46: 1957-04-09 | E46: KSC Holding Graz | F46: 340 | G46: 118 | H46: 17 | I46: =SUM(F46:G46) -> 458
A47: 38 | B47: 161096 | C47: Freudenthaler Josef | D47: 1955-01-20 | E47: WSV Liezen Admiral | F47: 325 | G47: 132 | H47: 13 | I47: =SUM(F47:G47) -> 457
A48: 39 | B48: 161050 | C48: Janics Franz | D48: 1951-03-12 | E48: KSV Gratkorn | F48: 332 | G48: 122 | H48: 18 | I48: =SUM(F48:G48) -> 454
A49: 40 | B49: 161109 | C49: Dirscher Norbert | D49: 1948-10-27 | E49: SKC Montanuni Leoben | F49: 307 | G49: 119 | H49: 17 | I49: =SUM(F49:G49) -> 426
A50: 41 | I50: =SUM(F50:G50) -> 0
A51: 42 | I51: 0
A52: 43 | I52: 0
A53: 44 | I53: 0
